fUSD/lending_fUSD_20240606
["ID","MTS","AMOUNT","RATE_DAILY","PERIOD"]
[328667785,1717686641030,-880.06,0.00027397,4]
[328667786,1717686641050,-500.0,0.00027397,4]
[328667787,1717686641060,-500.0,0.00027397,4]
[328667788,1717686641070,-500.0,0.00027397,4]
[328667789,1717686641079,-500.0,0.00027397,4]
[328667790,1717686641089,-500.0,0.00027397,4]
[328667791,1717686641098,-500.0,0.00027397,4]
[328667792,1717686641108,-916.95,0.00027397,4]
[328667793,1717686641118,-500.0,0.00027397,4]
[328667794,1717686641127,-500.0,0.00027397,4]
[328667795,1717686641137,-500.0,0.00027397,4]
[328667796,1717686641147,-500.0,0.00027397,4]
[328667797,1717686641156,-500.0,0.00027397,4]
[328667798,1717686641166,-2146.13,0.00027397,4]
[328667799,1717686641176,-500.0,0.00027397,4]
[328667800,1717686641186,-500.0,0.00027397,4]
[328667801,1717686641196,-500.0,0.00027397,4]
[328667802,1717686641206,-500.0,0.00027397,4]
[328667803,1717686641216,-4182.97,0.00027397,4]
[328667804,1717686641226,-2172.84,0.00027397,4]
[328667805,1717686641235,-878.93,0.00027397,4]
[328667806,1717686641245,-500.0,0.00027397,4]
[328667807,1717686641255,-500.0,0.00027397,4]
[328667808,1717686641265,-500.0,0.00027397,4]
[328667809,1717686641274,-652.65,0.00027397,4]
[328667810,1717686641284,-500.0,0.00027397,4]
[328667811,1717686641294,-500.0,0.00027397,4]
[328667812,1717686641304,-943.09,0.00027397,4]
[328667813,1717686641314,-1798.64,0.00027397,4]
[328667814,1717686641324,-584.12,0.00027397,4]
[328667815,1717686641334,-2073.32,0.00027397,4]
[328667816,1717686641344,-500.0,0.00027397,4]
[328667817,1717686641353,-1369.53,0.00027397,4]
[328667818,1717686641363,-500.0,0.00027397,4]
[328667819,1717686641373,-500.0,0.00027397,4]
[328667820,1717686641382,-500.0,0.00027397,4]
[328667821,1717686641391,-1101.45,0.00027397,4]
[328667822,1717686641401,-634.18466424,0.00027397,4]
[328667823,1717686641411,-1246.45,0.00027397,4]
[328667824,1717686641420,-551.64,0.00027397,4]
[328667825,1717686641429,-576.02,0.00027397,4]
[328667826,1717686641439,-500.0,0.00027397,4]
[328667827,1717686641448,-897.91,0.00027397,4]
[328667828,1717686641458,-500.0,0.00027397,4]
[328667829,1717686641467,-1745.14,0.00027397,4]
[328667830,1717686641477,-500.0,0.00027397,4]
[328667831,1717686641486,-528.54,0.00027397,4]
[328667832,1717686641495,-1224.62,0.00027397,4]
[328667833,1717686641505,-500.0,0.00027397,4]
[328667834,1717686641514,-500.0,0.00027397,4]
[328667835,1717686641526,-1556.05,0.00027397,4]
[328667836,1717686641538,-500.0,0.00027397,4]
[328667837,1717686641548,-669.15,0.00027397,4]
[328667838,1717686641558,-2487.78,0.00027397,4]
[328667839,1717686641569,-500.0,0.00027397,4]
[328667840,1717686641579,-500.0,0.00027397,4]
[328667841,1717686641589,-500.0,0.00027397,4]
[328667842,1717686641599,-1343.56,0.00027397,4]
[328667843,1717686641612,-500.0,0.00027397,4]
[328667844,1717686641622,-500.0,0.00027397,4]
[328667845,1717686641631,-500.0,0.00027397,4]
[328667846,1717686641641,-500.0,0.00027397,4]
[328667847,1717686641651,-500.0,0.00027397,4]
[328667848,1717686641661,-500.0,0.00027397,4]
[328667849,1717686641670,-500.0,0.00027397,4]
[328667850,1717686641679,-740.29,0.00027397,4]
[328667851,1717686641689,-500.0,0.00027397,4]
[328667852,1717686641699,-500.0,0.00027397,4]
[328667853,1717686641708,-500.0,0.00027397,4]
[328667854,1717686641718,-500.0,0.00027397,4]
[328667855,1717686641727,-500.0,0.00027397,4]
[328667856,1717686641736,-500.0,0.00027397,4]
[328667857,1717686641746,-781.97,0.00027397,4]
[328667858,1717686641756,-500.0,0.00027397,4]
[328667859,1717686641766,-1229.55,0.00027397,4]
[328667860,1717686641775,-375.18858631,0.00027397,4]
[328667861,1717686641784,-500.0,0.00027397,4]
[328667862,1717686641793,-500.0,0.00027397,4]
[328667863,1717686641803,-500.0,0.00027397,4]
[328667864,1717686641813,-601.86519693,0.00027397,4]
[328667865,1717686641822,-500.0,0.00027397,4]
[328667866,1717686641831,-5063.26,0.00027397,4]
[328667867,1717686641841,-1206.05,0.00027397,4]
[328667868,1717686641850,-500.0,0.00027397,4]
[328667869,1717686641860,-1584.5,0.00027397,4]
[328667870,1717686641869,-731.79,0.00027397,4]
[328667871,1717686641879,-500.0,0.00027397,4]
[328667872,1717686641888,-500.0,0.00027397,4]
[328667873,1717686641898,-1101.15,0.00027397,4]
[328667874,1717686641908,-537.05,0.00027397,4]
[328667875,1717686641917,-500.0,0.00027397,4]
[328667876,1717686641927,-500.0,0.00027397,4]
[328667877,1717686641936,-500.0,0.00027397,4]
[328667878,1717686641945,-674.4,0.00027397,4]
[328667879,1717686641955,-500.0,0.00027397,4]
[328667880,1717686641964,-1141.68,0.00027397,4]
[328667881,1717686641973,-202.08582506,0.00027397,7]
[328667882,1717686641982,-1629.15,0.00027397,10]
[328667883,1717686641992,-160.04,0.000274,2]
[328667884,1717686642001,-152.0,0.00027428,3]
[328667885,1717686642011,-500.0,0.00027671,4]
[328667886,1717686642020,-619.56,0.00027671,4]
[328667887,1717686642030,-500.0,0.00027671,4]
[328667888,1717686642040,-500.0,0.00027671,4]
[328667889,1717686642049,-226.86097971,0.00027671,4]
[328667890,1717686642060,-500.0,0.00027671,4]
[328667891,1717686642069,-250.0,0.00027671,4]
[328667892,1717686642079,-500.0,0.00027671,4]
[328667893,1717686642090,-500.0,0.00027671,4]
[328667894,1717686642100,-500.0,0.00027671,4]
[328667895,1717686642111,-500.0,0.00027671,2]
[328667896,1717686642120,-509.23700192,0.00027671,4]
[328667897,1717686642133,-500.0,0.00027671,4]
[328667898,1717686642144,-500.0,0.00027671,4]
[328667899,1717686642153,-500.0,0.00027671,4]
[328667900,1717686642163,-500.0,0.00027671,4]
[328667901,1717686642173,-531.76,0.00027671,4]
[328667902,1717686642183,-500.0,0.00027671,4]
[328667903,1717686642193,-505.51625852,0.00027671,4]
[328667904,1717686642203,-500.0,0.00027671,4]
[328667905,1717686642212,-500.0,0.00027671,2]
[328667906,1717686642222,-636.0,0.00027671,4]
[328667907,1717686642234,-500.0,0.00027671,4]
[328667908,1717686642244,-500.0,0.00027671,4]
[328667909,1717686642254,-500.0,0.00027671,4]
[328667910,1717686642265,-500.0,0.00027671,4]
[328667911,1717686642275,-500.0,0.00027671,4]
[328667912,1717686642284,-500.0,0.00027671,4]
[328667913,1717686642294,-500.0,0.00027671,4]
[328667914,1717686642304,-500.0,0.00027671,4]
[328667915,1717686642314,-500.0,0.00027671,4]
[328667916,1717686642323,-500.0,0.00027671,4]
[328667917,1717686642332,-500.0,0.00027671,4]
[328667918,1717686642345,-500.0,0.00027671,4]
[328667919,1717686642355,-500.0,0.00027671,4]
[328667920,1717686642364,-500.0,0.00027671,4]
[328667921,1717686642374,-543.46376708,0.00027671,4]
[328667922,1717686642384,-517.51,0.00027671,4]
[328667923,1717686642395,-500.0,0.00027671,4]
[328667924,1717686642404,-500.0,0.00027671,4]
[328667925,1717686642413,-610.02233275,0.00027671,4]
[328667926,1717686642423,-500.0,0.00027671,4]
[328667927,1717686642432,-500.0,0.00027671,4]
[328667928,1717686642441,-533.1611397,0.00027671,4]
[328667929,1717686642451,-500.0,0.00027671,4]
[328667930,1717686642460,-1016.7,0.00027671,4]
[328667931,1717686642470,-500.0,0.00027671,4]
[328667932,1717686642479,-500.0,0.00027671,4]
[328667933,1717686642489,-500.0,0.00027671,4]
[328667934,1717686642498,-500.0,0.00027671,4]
[328667935,1717686642509,-500.0,0.00027671,4]
[328667936,1717686642519,-500.0,0.00027671,4]
[328667937,1717686642531,-500.0,0.00027671,4]
[328667938,1717686642541,-346.349378,0.00027671,4]
[328667939,1717686642550,-500.0,0.00027671,4]
[328667940,1717686642560,-500.0,0.00027671,4]
[328667941,1717686642572,-500.0,0.00027671,4]
[328667942,1717686642583,-500.0,0.00027671,4]
[328667943,1717686642592,-500.0,0.00027671,4]
[328667945,1717686642603,-500.0,0.00027671,4]
[328667947,1717686642612,-500.0,0.00027671,4]
[328667949,1717686642622,-500.0,0.00027671,4]
[328667951,1717686642632,-500.0,0.00027671,4]
[328667953,1717686642643,-500.0,0.00027671,4]
[328667954,1717686642652,-500.0,0.00027671,4]
[328667956,1717686642661,-500.0,0.00027671,4]
[328667958,1717686642670,-500.0,0.00027671,4]
[328667960,1717686642679,-500.0,0.00027671,4]
[328667962,1717686642688,-500.0,0.00027671,4]
[328667964,1717686642698,-500.0,0.00027671,4]
[328667966,1717686642707,-500.0,0.00027671,4]
[328667968,1717686642717,-500.0,0.00027671,4]
[328667970,1717686642726,-500.0,0.00027671,4]
[328667972,1717686642736,-500.0,0.00027671,4]
[328667974,1717686642746,-500.0,0.00027671,4]
[328667975,1717686642756,-500.0,0.00027671,4]
[328667977,1717686642766,-500.0,0.00027671,4]
[328667979,1717686642776,-500.0,0.00027671,4]
[328667981,1717686642786,-500.0,0.00027671,4]
[328667983,1717686642795,-500.0,0.00027671,4]
[328667985,1717686642805,-500.0,0.00027671,4]
[328667986,1717686642815,-150.0,0.00027671,4]
[328667987,1717686642824,-500.0,0.00027671,4]
[328667988,1717686642834,-500.0,0.00027671,4]
[328667989,1717686642843,-573.51,0.00027671,4]
[328667990,1717686642853,-502.72,0.00027671,4]
[328667991,1717686642862,-500.0,0.00027671,4]
[328667992,1717686642872,-500.0,0.00027671,4]
[328667993,1717686642881,-778.52,0.00027671,4]
[328667994,1717686642890,-500.0,0.00027671,4]
[328667995,1717686642902,-500.0,0.00027671,4]
[328667996,1717686642911,-500.0,0.00027671,4]
[328667997,1717686642921,-565.04,0.00027671,4]
[328667998,1717686642930,-500.0,0.00027671,4]
[328668000,1717686642940,-500.0,0.00027671,4]
[328668001,1717686642950,-1965.25,0.00027671,4]
[328668002,1717686642960,-500.0,0.00027671,4]
[328668005,1717686642969,-1598.65,0.00027671,4]
[328668007,1717686642979,-500.0,0.00027671,4]
[328668008,1717686642988,-952.89,0.00027671,4]
[328668009,1717686642997,-500.0,0.00027671,4]
[328668010,1717686643007,-500.0,0.00027671,4]
[328668011,1717686643016,-796.52140994,0.00027671,4]
[328668012,1717686643040,-89.77859006,0.00027671,4]
[328668013,1717686643052,-230.35467469,0.00027671,4]
[328668014,1717686643062,-468.28980904,0.00027671,4]
[328668015,1717686643074,-1605.37019096,0.00027671,4]
[328668016,1717686643084,-1250.62980904,0.00027671,4]
[328668017,1717686643096,-1714.5191474,0.00027671,4]
[328668018,1717686643108,-355.83525366,0.00027671,4]
[328668019,1717686643120,-420.0357899,0.00027671,4]
[328668020,1717686643130,-500.0,0.00027671,4]
[328668021,1717686643139,-964.49,0.00027671,4]
[328668022,1717686643151,-122.5929101,0.00027671,4]
[328668023,1717686643162,-377.4070899,0.00027671,4]
[328668024,1717686643172,-500.0,0.00027671,4]
[328668025,1717686643182,-500.0,0.00027671,4]
[328668026,1717686643192,-500.0,0.00027671,4]
[328668027,1717686643201,-500.0,0.00027671,4]
[328668028,1717686643211,-500.0,0.00027671,4]
[328668029,1717686643220,-500.0,0.00027671,4]
[328668030,1717686643230,-500.0,0.00027671,4]
[328668031,1717686643239,-500.0,0.00027671,4]
[328668032,1717686643249,-500.0,0.00027671,4]
[328668033,1717686643258,-452.61664239,0.00027671,4]
[328668034,1717686643270,-47.38335761,0.00027671,4]
[328668035,1717686643280,-500.0,0.00027671,4]
[328668036,1717686643290,-500.0,0.00027671,4]
[328668037,1717686643300,-1778.3,0.00027671,4]
[328668038,1717686643310,-500.0,0.00027671,4]
[328668039,1717686643319,-500.0,0.00027671,4]
[328668040,1717686643329,-500.0,0.00027671,4]
[328668041,1717686643338,-500.0,0.00027671,4]
[328668042,1717686643348,-500.0,0.00027671,4]
[328668043,1717686643358,-512.52116914,0.00027671,4]
[328668044,1717686643367,-500.0,0.00027671,4]
[328668045,1717686643377,-958.91,0.00027671,4]
[328668046,1717686643387,-500.0,0.00027671,4]
[328668047,1717686643399,-500.0,0.00027671,4]
[328668048,1717686643409,-500.0,0.00027671,4]
[328668049,1717686643420,-500.0,0.00027671,4]
[328668050,1717686643430,-1603.64,0.00027671,4]
[328668051,1717686643440,-1509.84,0.00027671,4]
[328668052,1717686643450,-500.0,0.00027671,4]
[328668053,1717686643460,-500.0,0.00027671,4]
[328668054,1717686643470,-392.50912424,0.00027671,4]
[328668055,1717686643480,-500.0,0.00027671,4]
[328668056,1717686643491,-500.0,0.00027671,4]
[328668057,1717686643500,-1090.54,0.00027671,4]
[328668058,1717686643511,-500.0,0.00027671,4]
[328668059,1717686643522,-500.0,0.00027671,4]
[328668060,1717686643536,-500.0,0.00027671,4]
[328668061,1717686643546,-500.0,0.00027671,4]
[328668062,1717686643556,-500.0,0.00027671,4]
[328668063,1717686643568,-500.0,0.00027671,4]
[328668064,1717686643578,-500.0,0.00027671,4]
[328668065,1717686643587,-686.36,0.00027671,4]
[328668066,1717686643597,-500.0,0.00027671,4]
[328668067,1717686643609,-1463.21,0.00027671,4]
[328668068,1717686643619,-500.0,0.00027671,4]
[328668069,1717686643629,-723.48,0.00027671,4]
[328668070,1717686643639,-500.0,0.00027671,4]
[328668071,1717686643651,-958.42,0.00027671,4]
[328668072,1717686643661,-500.0,0.00027671,4]
[328668073,1717686643671,-500.0,0.00027671,4]
[328668074,1717686643682,-633.24,0.00027671,4]
[328668075,1717686643693,-608.51,0.00027671,4]
[328668076,1717686643704,-500.0,0.00027671,4]
[328668077,1717686643714,-500.0,0.00027671,4]
[328668078,1717686643724,-500.0,0.00027671,4]
[328668079,1717686643734,-500.0,0.00027671,4]
[328668081,1717686643744,-880.06,0.00027671,4]
[328668083,1717686643755,-500.0,0.00027671,4]
[328668084,1717686643764,-500.0,0.00027671,4]
[328668085,1717686643775,-500.0,0.00027671,4]
[328668086,1717686643785,-500.0,0.00027671,4]
[328668087,1717686643795,-500.0,0.00027671,4]
[328668088,1717686643806,-500.0,0.00027671,4]
[328668089,1717686643816,-916.95,0.00027671,4]
[328668090,1717686643826,-500.0,0.00027671,4]
[328668091,1717686643836,-500.0,0.00027671,4]
[328668092,1717686643846,-500.0,0.00027671,4]
[328668093,1717686643856,-500.0,0.00027671,4]
[328668094,1717686643866,-500.0,0.00027671,4]
[328668095,1717686643876,-2146.13,0.00027671,4]
[328668096,1717686643886,-500.0,0.00027671,4]
[328668097,1717686643897,-151.3481011,0.00027671,4]
[328668098,1717686643906,-500.0,0.00027671,4]
[328668099,1717686643916,-4182.97,0.00027671,4]
[328668100,1717686643926,-2172.84,0.00027671,4]
[328668101,1717686643937,-878.93,0.00027671,4]
[328668102,1717686643948,-500.0,0.00027671,4]
[328668103,1717686643959,-500.0,0.00027671,4]
[328668104,1717686643969,-500.0,0.00027671,4]
[328668105,1717686643979,-652.65,0.00027671,4]
[328668106,1717686643989,-500.0,0.00027671,4]
[328668107,1717686644000,-500.0,0.00027671,4]
[328668108,1717686644010,-943.09,0.00027671,4]
[328668109,1717686644020,-1798.64,0.00027671,4]
[328668110,1717686644031,-584.12,0.00027671,4]
[328668111,1717686644041,-2073.32,0.00027671,4]
[328668112,1717686644052,-500.0,0.00027671,4]
[328668113,1717686644062,-1369.53,0.00027671,4]
[328668114,1717686644072,-500.0,0.00027671,4]
[328668115,1717686644083,-500.0,0.00027671,4]
[328668116,1717686644092,-500.0,0.00027671,4]
[328668117,1717686644102,-1101.45,0.00027671,4]
[328668118,1717686644112,-1246.45,0.00027671,4]
[328668119,1717686644121,-551.64,0.00027671,4]
[328668120,1717686644131,-576.02,0.00027671,4]
[328668121,1717686644140,-500.0,0.00027671,4]
[328668122,1717686644150,-897.91,0.00027671,4]
[328668123,1717686644160,-500.0,0.00027671,4]
[328668124,1717686644170,-1745.14,0.00027671,4]
[328668125,1717686644179,-500.0,0.00027671,4]
[328668126,1717686644189,-1224.62,0.00027671,4]
[328668127,1717686644200,-528.54,0.00027671,4]
[328668128,1717686644210,-500.0,0.00027671,4]
[328668129,1717686644220,-500.0,0.00027671,4]
[328668130,1717686644231,-1556.05,0.00027671,4]
[328668131,1717686644241,-500.0,0.00027671,4]
[328668132,1717686644251,-669.15,0.00027671,4]
[328668133,1717686644261,-2487.78,0.00027671,4]
[328668134,1717686644271,-500.0,0.00027671,4]
[328668135,1717686644281,-500.0,0.00027671,4]
[328668136,1717686644291,-222.01039826,0.00027671,4]
[328668137,1717686644301,-1343.56,0.00027671,4]
[328668138,1717686644312,-500.0,0.00027671,4]
[328668139,1717686644322,-500.0,0.00027671,4]
[328668140,1717686644332,-500.0,0.00027671,4]
[328668141,1717686644342,-500.0,0.00027671,4]
[328668142,1717686644352,-500.0,0.00027671,4]
[328668143,1717686644362,-500.0,0.00027671,4]
[328668144,1717686644371,-740.29,0.00027671,4]
[328668145,1717686644382,-500.0,0.00027671,4]
[328668146,1717686644393,-500.0,0.00027671,4]
[328668147,1717686644403,-500.0,0.00027671,4]
[328668148,1717686644412,-500.0,0.00027671,4]
[328668150,1717686644422,-500.0,0.00027671,4]
[328668152,1717686644432,-781.97,0.00027671,4]
[328668154,1717686644442,-500.0,0.00027671,4]
[328668156,1717686644452,-1229.55,0.00027671,4]
[328668158,1717686644462,-500.0,0.00027671,4]
[328668160,1717686644472,-500.0,0.00027671,4]
[328668162,1717686644482,-500.0,0.00027671,4]
[328668163,1717686644492,-500.0,0.00027671,4]
[328668165,1717686644502,-5063.26,0.00027671,4]
[328668168,1717686644513,-1206.05,0.00027671,4]
[328668170,1717686644524,-605.60336966,0.00027671,4]
[328668172,1717686644535,-1584.5,0.00027671,4]
[328668174,1717686644545,-731.79,0.00027671,4]
[328668176,1717686644555,-500.0,0.00027671,4]
[328668178,1717686644565,-500.0,0.00027671,4]
[328668180,1717686644576,-537.05,0.00027671,4]
[328668182,1717686644586,-1101.15,0.00027671,4]
[328668184,1717686644595,-500.0,0.00027671,4]
[328668186,1717686644607,-500.0,0.00027671,4]
[328668188,1717686644617,-500.0,0.00027671,4]
[328668190,1717686644628,-674.4,0.00027671,4]
[328668192,1717686644637,-500.0,0.00027671,4]
[328668194,1717686644649,-1066.10471386,0.00027807,2]
[328668196,1717686644658,-3311.84501163,0.00027845,2]
[328668198,1717686644667,-175.96130782,0.00027845,2]
[328668200,1717686644677,-202.634389,0.00027845,2]
[328668202,1717686644686,-170.15696502,0.00027845,2]
[328668204,1717686644697,-3387.57486753,0.000279,10]
[328668206,1717686644706,-159.90388304,0.000279,2]
[328668208,1717686644717,-230.40833961,0.00027945,4]
[328668210,1717686644727,-619.56,0.00027945,4]
[328668212,1717686644736,-500.0,0.00027945,4]
[328668214,1717686644746,-500.0,0.00027945,4]
[328668216,1717686644756,-259.66423808,0.00027945,4]
[328668218,1717686644765,-250.0,0.00027945,4]
[328668220,1717686644775,-500.0,0.00027945,4]
[328668222,1717686644785,-500.0,0.00027945,4]
[328668224,1717686644795,-500.0,0.00027945,4]
[328668226,1717686644804,-500.0,0.00027945,2]
[328668228,1717686644814,-500.0,0.00027945,4]
[328668231,1717686644824,-500.0,0.00027945,4]
[328668233,1717686644836,-500.0,0.00027945,4]
[328668235,1717686644846,-500.0,0.00027945,4]
[328668237,1717686644856,-531.76,0.00027945,4]
[328668239,1717686644866,-643.88764368,0.00027945,4]
[328668241,1717686644876,-500.0,0.00027945,4]
[328668243,1717686644886,-500.0,0.00027945,2]
[328668245,1717686644897,-636.0,0.00027945,4]
[328668247,1717686644906,-500.0,0.00027945,4]
[328668249,1717686644916,-500.0,0.00027945,4]
[328668251,1717686644925,-500.0,0.00027945,4]
[328668253,1717686644935,-500.0,0.00027945,4]
[328668255,1717686644945,-500.0,0.00027945,4]
[328668257,1717686644955,-500.0,0.00027945,4]
[328668259,1717686644965,-500.0,0.00027945,4]
[328668261,1717686644975,-500.0,0.00027945,4]
[328668263,1717686644985,-500.0,0.00027945,4]
[328668265,1717686644995,-500.0,0.00027945,4]
[328668267,1717686645005,-500.0,0.00027945,4]
[328668269,1717686645014,-500.0,0.00027945,4]
[328668271,1717686645026,-517.51,0.00027945,4]
[328668273,1717686645036,-500.0,0.00027945,4]
[328668275,1717686645045,-500.0,0.00027945,4]
[328668278,1717686645056,-500.0,0.00027945,4]
[328668280,1717686645066,-500.0,0.00027945,4]
[328668282,1717686645076,-1016.7,0.00027945,4]
[328668284,1717686645086,-500.0,0.00027945,4]
[328668286,1717686645097,-500.0,0.00027945,4]
[328668288,1717686645106,-500.0,0.00027945,4]
[328668290,1717686645116,-500.0,0.00027945,4]
[328668292,1717686645126,-500.0,0.00027945,4]
[328668294,1717686645136,-500.0,0.00027945,4]
[328668296,1717686645147,-500.0,0.00027945,4]
[328668298,1717686645157,-500.0,0.00027945,4]
[328668300,1717686645167,-500.0,0.00027945,4]
[328668303,1717686645178,-500.0,0.00027945,4]
[328668305,1717686645188,-500.0,0.00027945,4]
[328668307,1717686645198,-500.0,0.00027945,4]
[328668309,1717686645208,-500.0,0.00027945,4]
[328668311,1717686645218,-500.0,0.00027945,4]
[328668313,1717686645228,-500.0,0.00027945,4]
[328668315,1717686645238,-500.0,0.00027945,4]
[328668317,1717686645248,-500.0,0.00027945,4]
[328668319,1717686645258,-500.0,0.00027945,4]
[328668321,1717686645268,-500.0,0.00027945,4]
[328668323,1717686645278,-500.0,0.00027945,4]
[328668325,1717686645288,-500.0,0.00027945,4]
[328668327,1717686645299,-206.48741534,0.00027945,4]
[328668346,1717686645777,-1141.68,0.00027671,4]
[328668347,1717686645788,-293.51258466,0.00027945,4]
[328668348,1717686645797,-500.0,0.00027945,4]
[328668349,1717686645807,-500.0,0.00027945,4]
[328668350,1717686645818,-500.0,0.00027945,4]
[328668351,1717686645828,-474.20307831,0.00027945,4]
[328668352,1717686645837,-500.0,0.00027945,4]
[328668353,1717686645848,-500.0,0.00027945,4]
[328668354,1717686645858,-500.0,0.00027945,4]
[328668355,1717686645867,-500.0,0.00027945,4]
[328668356,1717686645878,-500.0,0.00027945,4]
[328668357,1717686645888,-500.0,0.00027945,4]
[328668359,1717686645899,-500.0,0.00027945,4]
[328668361,1717686645910,-500.0,0.00027945,4]
[328668363,1717686645919,-150.0,0.00027945,4]
[328668365,1717686645929,-500.0,0.00027945,4]
[328668367,1717686645939,-500.0,0.00027945,4]
[328668368,1717686645948,-573.51,0.00027945,4]
[328668369,1717686645958,-502.72,0.00027945,4]
[328668370,1717686645967,-500.0,0.00027945,4]
[328668371,1717686645977,-500.0,0.00027945,4]
[328668373,1717686645986,-778.52,0.00027945,4]
[328668375,1717686645996,-492.62800264,0.00027945,4]
[328668377,1717686646005,-500.0,0.00027945,4]
[328668379,1717686646015,-500.0,0.00027945,4]
[328668381,1717686646024,-565.04,0.00027945,4]
[328668383,1717686646034,-500.0,0.00027945,4]
[328668384,1717686646043,-1965.25,0.00027945,4]
[328668386,1717686646052,-500.0,0.00027945,4]
[328668389,1717686646062,-500.0,0.00027945,4]
[328668390,1717686646071,-1598.65,0.00027945,4]
[328668392,1717686646081,-488.50934439,0.00027945,4]
[328668394,1717686646090,-952.89,0.00027945,4]
[328668396,1717686646100,-500.0,0.00027945,4]
[328668397,1717686646109,-500.0,0.00027945,4]
[328668398,1717686646119,-886.3,0.00027945,4]
[328668399,1717686646128,-2073.66,0.00027945,4]
[328668400,1717686646137,-3741.02,0.00027945,4]
[328668401,1717686646148,-500.0,0.00027945,4]
[328668402,1717686646157,-964.49,0.00027945,4]
[328668403,1717686646169,-500.0,0.00027945,4]
[328668404,1717686646178,-500.0,0.00027945,4]
[328668405,1717686646188,-630.39095747,0.00027945,4]
[328668406,1717686646198,-500.0,0.00027945,4]
[328668407,1717686646207,-500.0,0.00027945,4]
[328668408,1717686646218,-500.0,0.00027945,4]
[328668409,1717686646228,-500.0,0.00027945,4]
[328668410,1717686646238,-500.0,0.00027945,4]
[328668411,1717686646247,-500.0,0.00027945,4]
[328668412,1717686646257,-500.0,0.00027945,4]
[328668413,1717686646266,-500.0,0.00027945,4]
[328668414,1717686646276,-500.0,0.00027945,4]
[328668415,1717686646286,-1778.3,0.00027945,4]
[328668416,1717686646295,-500.0,0.00027945,4]
[328668417,1717686646305,-500.0,0.00027945,4]
[328668418,1717686646315,-500.0,0.00027945,4]
[328668419,1717686646325,-500.0,0.00027945,4]
[328668420,1717686646335,-500.0,0.00027945,4]
[328668421,1717686646344,-500.0,0.00027945,4]
[328668422,1717686646354,-958.91,0.00027945,4]
[328668423,1717686646364,-500.0,0.00027945,4]
[328668424,1717686646374,-498.13579615,0.00027945,4]
[328668425,1717686646384,-500.0,0.00027945,4]
[328668426,1717686646393,-500.0,0.00027945,4]
[328668427,1717686646403,-1603.64,0.00027945,4]
[328668428,1717686646413,-1509.84,0.00027945,4]
[328668429,1717686646423,-500.0,0.00027945,4]
[328668430,1717686646432,-479.27185197,0.00027945,4]
[328668431,1717686646442,-500.0,0.00027945,4]
[328668432,1717686646452,-500.0,0.00027945,4]
[328668433,1717686646461,-1090.54,0.00027945,4]
[328668434,1717686646471,-500.0,0.00027945,4]
[328668435,1717686646481,-500.0,0.00027945,4]
[328668436,1717686646490,-500.0,0.00027945,4]